Workbook

Sheet DataInput
X1: Combo Box Input Ranges | AD1: Input for VBA and Graph
A2: Step 1 - Enter data (do not skip lines)
X3: mg/L | AD3: ConcentrationUnit: | AF3: 4
A4: Date | B4: Concentration | C4: Non-detect (enter "<") | F4: Step 2 - Enter Other Information | X4: μg/L | AD4: StartDay: | AF4: 15
A5: 2004-05-15T01:00:00 | B5: 0.1 | C5: < | X5: Toxic Units | AD5: StartMonth: | AF5: 5
A6: 2004-05-15T01:00:00 | B6: 12.1 | F6: Site: | H6: Kenai (turbidity) | X6: NTU | AD6: EndDay: | AF6: 16
A7: 2004-05-15T05:30:00 | B7: 12 | F7: Concentration Units: | AD7: EndMonth: | AF7: 8
A8: 2004-05-15T08:15:00 | B8: 10.3 | F8: Analyst: | H8: Sam | X8: January | Y8: 1 | Z8: 31 | AB8: 1
A9: 2004-05-15T15:30:00 | B9: 13.5 | F9: Date: | H9: 2010-06-10 | X9: February | Y9: 2 | Z9: 28 | AB9: =AB8+1 -> 2 | AD9: =MIN(A5:A1048576) -> 2004-05-15T01:00:00 | AE9: =IF(COUNTIF(C5:C1048576,"=<")=0,-100,MinDetLimit) -> 0.1
A10: 2004-05-15T18:45:00 | B10: 13.6 | X10: March | Y10: 3 | Z10: 31 | AB10: =AB9+1 -> 3 | AD10: =MAX(A5:A1048576) -> 2006-07-01 | AE10: =AE9 -> 0.1
A11: 2004-05-15T20:15:00 | B11: 14.9 | X11: April | Y11: 4 | Z11: 30 | AB11: 4
A12: 2004-05-16T01:00:00 | B12: 16.2 | X12: May | Y12: 5 | Z12: 31 | AB12: 5
A13: 2004-05-16T04:30:00 | B13: 15.6 | F13: Step 3 - Define Season Range | X13: June | Y13: 6 | Z13: 30 | AB13: 6 | AD13: =OFFSET(X3,AF3-1,0) -> NTU
A14: 2004-05-16T12:45:00 | B14: 12.8 | X14: July | Y14: 7 | Z14: 31 | AB14: 7 | AD14: ="Concentration (" &AD13&")" -> Concentration (NTU)
A15: 2004-05-16T19:30:00 | B15: 10.7 | G15: Day | H15: Month | X15: August | Y15: 8 | Z15: 31 | AB15: =AB14+1 -> 8
A16: 2004-05-17T01:00:00 | B16: 13.1 | F16: Beginning: | X16: September | Y16: 9 | Z16: 30 | AB16: 9
A17: 2004-05-17T13:30:00 | B17: 11.9 | X17: October | Y17: 10 | Z17: 31 | AB17: =AB16+1 -> 10
A18: 2004-05-17T20:15:00 | B18: 13.6 | G18: Day | H18: Month | X18: November | Y18: 11 | Z18: 30 | AB18: =AB17+1 -> 11
A19: 2004-05-17T22:45:00 | B19: 11.6 | F19: Ending: | X19: December | Y19: 12 | Z19: 31 | AB19: 12
A20: 2004-05-17T23:45:00 | B20: 12.2 | AB20: 13 | AD20: Minimum Detection Limit: | AF20: =MAX(IF(C5:C1048576="<",B5:B1048576)) -> 0.1
A21: 2004-05-18T02:30:00 | B21: 15.3 | AB21: 14
A22: 2004-05-18T08:30:00 | B22: 13.7 | AB22: 15
A23: 2004-05-18T18:15:00 | B23: 16.8 | AB23: 16
A24: 2004-05-18T21:15:00 | B24: 17.2 | F24: Step 4 - Process Data (click button) | AB24: 17
A25: 2004-05-19T00:30:00 | B25: 19.8 | AB25: 18
A26: 2004-05-19T02:00:00 | B26: 20.4 | AB26: 19
A27: 2004-05-19T13:45:00 | B27: 15.2 | AB27: 20
A28: 2004-05-19T14:45:00 | B28: 13.2 | AB28: =AB27+1 -> 21
A29: 2004-05-19T19:15:00 | B29: 14.2 | AB29: 22
A30: 2004-05-19T20:30:00 | B30: 15.2 | AB30: 23
A31: 2004-05-20T08:15:00 | B31: 14.4 | AB31: 24
A32: 2004-05-20T14:00:00 | B32: 14.5 | AB32: 25
A33: 2004-05-20T19:15:00 | B33: 19.6 | AB33: 26
A34: 2004-05-20T22:45:00 | B34: 20.9 | AB34: =AB33+1 -> 27
A35: 2004-05-21T01:30:00 | B35: 22.9 | AB35: 28
A36: 2004-05-21T10:30:00 | B36: 19.9 | AB36: 29
A37: 2004-05-21T13:45:00 | B37: 20.1 | AB37: 30
A38: 2004-05-21T19:30:00 | B38: 24.6 | AB38: =AB37+1 -> 31
A39: 2004-05-21T22:45:00 | B39: 29
A40: 2004-05-22T07:45:00 | B40: 28.2
A41: 2004-05-22T09:45:00 | B41: 26.5
A42: 2004-05-23T11:45:00 | B42: 25.4
A43: 2004-05-23T22:30:00 | B43: 27.9
A44: 2004-05-23T23:15:00 | B44: 31.1
A45: 2004-05-23T23:45:00 | B45: 27.3
A46: 2004-05-24T02:00:00 | B46: 24.3
A47: 2004-05-24T12:45:00 | B47: 23.1
A48: 2004-05-24T14:00:00 | B48: 24.4
A49: 2004-05-24T18:30:00 | B49: 19.3
A50: 2004-05-24T21:30:00 | B50: 21.1
A51: 2004-05-25T00:30:00 | B51: 22.4
A52: 2004-05-25T06:00:00 | B52: 21.7
A53: 2004-05-25T22:45:00 | B53: 16.6
A54: 2004-05-26T11:15:00 | B54: 14.9
A55: 2004-05-26T12:30:00 | B55: 13.8
A56: 2004-05-26T14:30:00 | B56: 15.6
A57: 2004-05-27T01:30:00 | B57: 11.5
A58: 2004-05-27T04:00:00 | B58: 12.5
A59: 2004-05-27T05:15:00 | B59: 11.6
A60: 2004-05-27T06:00:00 | B60: 10.5
A61: 2004-05-27T09:15:00 | B61: 14.1
A62: 2004-05-27T12:00:00 | B62: 9.8
A63: 2004-05-27T13:30:00 | B63: 10.2
A64: 2004-05-27T14:45:00 | B64: 11.8
A65: 2004-05-27T14:45:00 | B65: 14.2
A66: 2004-05-27T18:45:00 | B66: 15.6
A67: 2004-05-27T22:45:00 | B67: 16
A68: 2004-05-28T05:30:00 | B68: 13.7
A69: 2004-05-28T12:15:00 | B69: 12.9
A70: 2004-05-28T14:15:00 | B70: 13.1
A71: 2004-05-28T15:30:00 | B71: 13.6
A72: 2004-05-28T23:45:00 | B72: 17.1
A73: 2004-05-29T05:30:00 | B73: 17.1
A74: 2004-05-29T13:00:00 | B74: 14.5
A75: 2004-05-30T06:00:00 | B75: 15.8
A76: 2004-05-30T08:15:00 | B76: 14.3
A77: 2004-05-30T10:00:00 | B77: 14.7
A78: 2004-05-30T14:45:00 | B78: 19.5
A79: 2004-05-30T15:30:00 | B79: 19.7
A80: 2004-05-30T21:15:00 | B80: 28
A81: 2004-05-31T01:45:00 | B81: 29.1
A82: 2004-05-31T03:45:00 | B82: 29.6
A83: 2004-05-31T05:00:00 | B83: 29.4
A84: 2004-05-31T05:15:00 | B84: 27.8
A85: 2004-05-31T07:15:00 | B85: 24.5
A86: 2004-05-31T08:30:00 | B86: 25.8
A87: 2004-05-31T14:00:00 | B87: 26.2
A88: 2004-05-31T14:30:00 | B88: 35.2
A89: 2004-05-31T19:00:00 | B89: 35.4
A90: 2004-05-31T19:30:00 | B90: 39.9
A91: 2004-06-01T02:30:00 | B91: 34.8
A92: 2004-06-01T03:30:00 | B92: 35.2
A93: 2004-06-01T07:45:00 | B93: 27.1
A94: 2004-06-01T12:00:00 | B94: 23
A95: 2004-06-01T12:45:00 | B95: 24.7
A96: 2004-06-01T14:30:00 | B96: 24
A97: 2004-06-01T23:45:00 | B97: 20
A98: 2004-06-02T09:45:00 | B98: 17.5
A99: 2004-06-02T12:15:00 | B99: 14.5
A100: 2004-06-02T12:45:00 | B100: 15.7
A101: 2004-06-02T16:45:00 | B101: 14.1
A102: 2004-06-02T21:45:00 | B102: 14.4
A103: 2004-06-03T16:15:00 | B103: 13.2
A104: 2004-06-04T01:30:00 | B104: 11.7
A105: 2004-06-04T03:45:00 | B105: 12.4
A106: 2004-06-04T06:30:00 | B106: 12.6
A107: 2004-06-04T13:30:00 | B107: 10.4
A108: 2004-06-04T15:15:00 | B108: 10
A109: 2004-06-04T20:30:00 | B109: 10.8
A110: 2004-06-04T21:00:00 | B110: 10.8
A111: 2004-06-05T00:45:00 | B111: 10.6
A112: 2004-06-05T09:15:00 | B112: 9.4
A113: 2004-06-05T14:30:00 | B113: 10.4
A114: 2004-06-05T15:15:00 | B114: 9.5
A115: 2004-06-05T17:00:00 | B115: 8.8
A116: 2004-06-05T17:30:00 | B116: 9
A117: 2004-06-06T01:30:00 | B117: 7.5
A118: 2004-06-06T01:45:00 | B118: 8
A119: 2004-06-06T02:30:00 | B119: 7.5
A120: 2004-06-06T05:15:00 | B120: 8.1
A121: 2004-06-06T18:45:00 | B121: 7.8
A122: 2004-06-06T20:00:00 | B122: 8.2
A123: 2004-06-06T21:45:00 | B123: 7.3
A124: 2004-06-06T22:30:00 | B124: 7.3
A125: 2004-06-07T01:15:00 | B125: 8
A126: 2004-06-07T09:00:00 | B126: 6.7
A127: 2004-06-07T09:45:00 | B127: 6.2
A128: 2004-06-07T11:45:00 | B128: 5.7
A129: 2004-06-08T21:45:00 | B129: 9.4
A130: 2004-06-09T03:15:00 | B130: 9.3
A131: 2004-06-09T12:00:00 | B131: 9.6
A132: 2004-06-09T15:00:00 | B132: 12.5
A133: 2004-06-09T17:15:00 | B133: 14.8
A134: 2004-06-09T19:00:00 | B134: 16.8
A135: 2004-06-09T20:15:00 | B135: 17.6
A136: 2004-06-09T23:30:00 | B136: 15.9
A137: 2004-06-10T02:45:00 | B137: 16.2
A138: 2004-06-10T04:00:00 | B138: 14.4
A139: 2004-06-10T05:00:00 | B139: 13.5
A140: 2004-06-10T05:45:00 | B140: 13.4
A141: 2004-06-10T07:00:00 | B141: 14.2
A142: 2004-06-10T11:45:00 | B142: 11.3
A143: 2004-06-10T17:15:00 | B143: 8.4
A144: 2004-06-10T20:30:00 | B144: 9
A145: 2004-06-10T22:15:00 | B145: 8
A146: 2004-06-10T23:00:00 | B146: 8
A147: 2004-06-11T03:15:00 | B147: 8.8
A148: 2004-06-11T09:30:00 | B148: 9.4
A149: 2004-06-11T20:15:00 | B149: 13.3
A150: 2004-06-12T12:45:00 | B150: 9.6
A151: 2004-06-12T13:45:00 | B151: 9.4
A152: 2004-06-12T14:15:00 | B152: 8.8
A153: 2004-06-12T19:00:00 | B153: 8.6
A154: 2004-06-12T19:30:00 | B154: 8.1
A155: 2004-06-12T20:45:00 | B155: 8.7
A156: 2004-06-13T04:45:00 | B156: 8.5
A157: 2004-06-13T19:30:00 | B157: 9.3
A158: 2004-06-13T21:30:00 | B158: 11.2
A159: 2004-06-14T01:15:00 | B159: 9.8
A160: 2004-06-14T07:45:00 | B160: 8.8
A161: 2004-06-14T22:45:00 | B161: 8.6
A162: 2004-06-15T12:15:00 | B162: 8.5
A163: 2004-06-15T16:45:00 | B163: 11.6
A164: 2004-06-15T19:45:00 | B164: 13.6
A165: 2004-06-15T20:15:00 | B165: 14
A166: 2004-06-15T22:00:00 | B166: 14.6
A167: 2004-06-16T03:15:00 | B167: 16
A168: 2004-06-16T23:30:00 | B168: 28.7
A169: 2004-06-17T08:45:00 | B169: 24.4
A170: 2004-06-17T12:45:00 | B170: 31.9
A171: 2004-06-17T19:30:00 | B171: 43.8
A172: 2004-06-18T00:30:00 | B172: 47.1
A173: 2004-06-18T23:45:00 | B173: 50.9
A174: 2004-06-19T03:00:00 | B174: 45.4
A175: 2004-06-19T11:45:00 | B175: 37.8
A176: 2004-06-20T01:15:00 | B176: 29.2
A177: 2004-06-20T11:15:00 | B177: 28.7
A178: 2004-06-20T21:15:00 | B178: 30.5
A179: 2004-06-21T09:00:00 | B179: 26.4
A180: 2004-06-21T20:00:00 | B180: 38.6
A181: 2004-06-22T00:45:00 | B181: 38.1
A182: 2004-06-22T01:15:00 | B182: 36.6
A183: 2004-06-22T11:15:00 | B183: 32.4
A184: 2004-06-22T15:00:00 | B184: 33.9
A185: 2004-06-22T20:30:00 | B185: 37.6
A186: 2004-06-23T22:00:00 | B186: 24.1
A187: 2004-06-24T04:15:00 | B187: 26.1
A188: 2004-06-24T07:00:00 | B188: 26.6
A189: 2004-06-24T15:45:00 | B189: 21.9
A190: 2004-06-24T21:15:00 | B190: 20
A191: 2004-06-25T06:30:00 | B191: 20.5
A192: 2004-06-25T07:45:00 | B192: 20.9
A193: 2004-06-25T10:00:00 | B193: 21.9
A194: 2004-06-25T12:15:00 | B194: 22.9
A195: 2004-06-26T02:30:00 | B195: 23.6
A196: 2004-06-26T10:30:00 | B196: 22.9
A197: 2004-06-26T18:15:00 | B197: 23
A198: 2004-06-26T19:00:00 | B198: 22.5
A199: 2004-06-26T22:45:00 | B199: 23.1
A200: 2004-06-27T06:45:00 | B200: 19.9
... 787 more rows

Sheet Screen
A2: Note: Valid data point(s) with concentration lower than the highest reported detection limit marked with a red star.
A4: Date | B4: Season | C4: Non-detect | D4: Concentration | H4: Pass | I4: Fail | O4: Data screening tests
A5: 2004-05-15T01:00:00 | B5: S | C5: < | D5: 0.1 | P5: All Data | Q5: In Season | R5: Out of Season
A6: 2004-05-15T01:00:00 | B6: S | D6: 12.1 | G6: Screening Tests | H6: All Data | I6: In Season | J6: Out of Season | O6: Two criteria | P6: =AND(H7>=20,H9>1) -> TRUE | Q6: =AND(I7>=20,I9>1) -> TRUE | R6: =AND(J7>=20,J9>1) -> FALSE
A7: 2004-05-15T05:30:00 | B7: S | D7: 12 | G7: Count | H7: 983 | I7: 901 | J7: 82 | O7: All three criteria | P7: =AND(H8<=0.2,H7>=20,H9>1) -> TRUE | Q7: =AND(I8<=0.2,I7>=20,I9>1) -> TRUE | R7: =AND(J8<=0.2,J7>=20,J9>1) -> FALSE
A8: 2004-05-15T08:15:00 | B8: S | D8: 10.3 | G8: % Non-detects | H8: 0.003051881994 | I8: 0.002219755827 | J8: 0.01219512195 | O8: Non-detect count | P8: 3 | Q8: 2 | R8: 1
A9: 2004-05-15T15:30:00 | B9: S | D9: 13.5 | G9: Date Range (years) | H9: 2.128652968 | I9: 2.128652968 | J9: 0.7037671233
A10: 2004-05-15T18:45:00 | B10: S | D10: 13.6
A11: 2004-05-15T20:15:00 | B11: S | D11: 14.9 | G11: Basic Stats | H11: All Data | I11: In Season | J11: Out of Season
A12: 2004-05-16T01:00:00 | B12: S | D12: 16.2 | G12: Mean | H12: 16.46431333 | I12: 17.21765816 | J12: 8.186707317 | L12: Calculated by macro CalculateStatsScreen()
A13: 2004-05-16T04:30:00 | B13: S | D13: 15.6 | G13: Median | H13: 13.8 | I13: 14.5 | J13: 7.85
A14: 2004-05-16T12:45:00 | B14: S | D14: 12.8 | G14: Standard Dev. | H14: 11.2369779 | I14: 11.40858182 | J14: 2.995411328
A15: 2004-05-16T19:30:00 | B15: S | D15: 10.7
A16: 2004-05-17T01:00:00 | B16: S | D16: 13.1
A17: 2004-05-17T13:30:00 | B17: S | D17: 11.9
A18: 2004-05-17T20:15:00 | B18: S | D18: 13.6 | G18: Step 5 - Transfer data to next sheet to test for trimming
A19: 2004-05-17T22:45:00 | B19: S | D19: 11.6
A20: 2004-05-17T23:45:00 | B20: S | D20: 12.2 | G20: Wilcoxon Rank Sum Test (includes non-detects)
A21: 2004-05-18T02:30:00 | B21: S | D21: 15.3 | G21: Test positive for seasonality.
A22: 2004-05-18T08:30:00 | B22: S | D22: 13.7
A23: 2004-05-18T18:15:00 | B23: S | D23: 16.8 | H23: Full dataset may be transfered, but seasonality is indicated.
A24: 2004-05-18T21:15:00 | B24: S | D24: 17.2
A25: 2004-05-19T00:30:00 | B25: S | D25: 19.8 | H25: Transfer in season dataset.
A26: 2004-05-19T02:00:00 | B26: S | D26: 20.4
A27: 2004-05-19T13:45:00 | B27: S | D27: 15.2 | H27: Seasonality indicated but out of season data do not meet minimum criteria.
A28: 2004-05-19T14:45:00 | B28: S | D28: 13.2
A29: 2004-05-19T19:15:00 | B29: S | D29: 14.2
A30: 2004-05-19T20:30:00 | B30: S | D30: 15.2
A31: 2004-05-20T08:15:00 | B31: S | D31: 14.4
A32: 2004-05-20T14:00:00 | B32: S | D32: 14.5
A33: 2004-05-20T19:15:00 | B33: S | D33: 19.6
A34: 2004-05-20T22:45:00 | B34: S | D34: 20.9
A35: 2004-05-21T01:30:00 | B35: S | D35: 22.9
A36: 2004-05-21T10:30:00 | B36: S | D36: 19.9
A37: 2004-05-21T13:45:00 | B37: S | D37: 20.1
A38: 2004-05-21T19:30:00 | B38: S | D38: 24.6
A39: 2004-05-21T22:45:00 | B39: S | D39: 29
A40: 2004-05-22T07:45:00 | B40: S | D40: 28.2
A41: 2004-05-22T09:45:00 | B41: S | D41: 26.5
A42: 2004-05-23T11:45:00 | B42: S | D42: 25.4
A43: 2004-05-23T22:30:00 | B43: S | D43: 27.9
A44: 2004-05-23T23:15:00 | B44: S | D44: 31.1
A45: 2004-05-23T23:45:00 | B45: S | D45: 27.3
A46: 2004-05-24T02:00:00 | B46: S | D46: 24.3
A47: 2004-05-24T12:45:00 | B47: S | D47: 23.1
A48: 2004-05-24T14:00:00 | B48: S | D48: 24.4
A49: 2004-05-24T18:30:00 | B49: S | D49: 19.3
A50: 2004-05-24T21:30:00 | B50: S | D50: 21.1
A51: 2004-05-25T00:30:00 | B51: S | D51: 22.4
A52: 2004-05-25T06:00:00 | B52: S | D52: 21.7
A53: 2004-05-25T22:45:00 | B53: S | D53: 16.6
A54: 2004-05-26T11:15:00 | B54: S | D54: 14.9
A55: 2004-05-26T12:30:00 | B55: S | D55: 13.8
A56: 2004-05-26T14:30:00 | B56: S | D56: 15.6
A57: 2004-05-27T01:30:00 | B57: S | D57: 11.5
A58: 2004-05-27T04:00:00 | B58: S | D58: 12.5
A59: 2004-05-27T05:15:00 | B59: S | D59: 11.6
A60: 2004-05-27T06:00:00 | B60: S | D60: 10.5
A61: 2004-05-27T09:15:00 | B61: S | D61: 14.1
A62: 2004-05-27T12:00:00 | B62: S | D62: 9.8
A63: 2004-05-27T13:30:00 | B63: S | D63: 10.2
A64: 2004-05-27T14:45:00 | B64: S | D64: 11.8
A65: 2004-05-27T14:45:00 | B65: S | D65: 14.2
A66: 2004-05-27T18:45:00 | B66: S | D66: 15.6
A67: 2004-05-27T22:45:00 | B67: S | D67: 16
A68: 2004-05-28T05:30:00 | B68: S | D68: 13.7
A69: 2004-05-28T12:15:00 | B69: S | D69: 12.9
A70: 2004-05-28T14:15:00 | B70: S | D70: 13.1
A71: 2004-05-28T15:30:00 | B71: S | D71: 13.6
A72: 2004-05-28T23:45:00 | B72: S | D72: 17.1
A73: 2004-05-29T05:30:00 | B73: S | D73: 17.1
A74: 2004-05-29T13:00:00 | B74: S | D74: 14.5
A75: 2004-05-30T06:00:00 | B75: S | D75: 15.8
A76: 2004-05-30T08:15:00 | B76: S | D76: 14.3
A77: 2004-05-30T10:00:00 | B77: S | D77: 14.7
A78: 2004-05-30T14:45:00 | B78: S | D78: 19.5
A79: 2004-05-30T15:30:00 | B79: S | D79: 19.7
A80: 2004-05-30T21:15:00 | B80: S | D80: 28
A81: 2004-05-31T01:45:00 | B81: S | D81: 29.1
A82: 2004-05-31T03:45:00 | B82: S | D82: 29.6
A83: 2004-05-31T05:00:00 | B83: S | D83: 29.4
A84: 2004-05-31T05:15:00 | B84: S | D84: 27.8
A85: 2004-05-31T07:15:00 | B85: S | D85: 24.5
A86: 2004-05-31T08:30:00 | B86: S | D86: 25.8
A87: 2004-05-31T14:00:00 | B87: S | D87: 26.2
A88: 2004-05-31T14:30:00 | B88: S | D88: 35.2
A89: 2004-05-31T19:00:00 | B89: S | D89: 35.4
A90: 2004-05-31T19:30:00 | B90: S | D90: 39.9
A91: 2004-06-01T02:30:00 | B91: S | D91: 34.8
A92: 2004-06-01T03:30:00 | B92: S | D92: 35.2
A93: 2004-06-01T07:45:00 | B93: S | D93: 27.1
A94: 2004-06-01T12:00:00 | B94: S | D94: 23
A95: 2004-06-01T12:45:00 | B95: S | D95: 24.7
A96: 2004-06-01T14:30:00 | B96: S | D96: 24
A97: 2004-06-01T23:45:00 | B97: S | D97: 20
A98: 2004-06-02T09:45:00 | B98: S | D98: 17.5
A99: 2004-06-02T12:15:00 | B99: S | D99: 14.5
A100: 2004-06-02T12:45:00 | B100: S | D100: 15.7
A101: 2004-06-02T16:45:00 | B101: S | D101: 14.1
A102: 2004-06-02T21:45:00 | B102: S | D102: 14.4
A103: 2004-06-03T16:15:00 | B103: S | D103: 13.2
A104: 2004-06-04T01:30:00 | B104: S | D104: 11.7
A105: 2004-06-04T03:45:00 | B105: S | D105: 12.4
A106: 2004-06-04T06:30:00 | B106: S | D106: 12.6
A107: 2004-06-04T13:30:00 | B107: S | D107: 10.4
A108: 2004-06-04T15:15:00 | B108: S | D108: 10
A109: 2004-06-04T20:30:00 | B109: S | D109: 10.8
A110: 2004-06-04T21:00:00 | B110: S | D110: 10.8
A111: 2004-06-05T00:45:00 | B111: S | D111: 10.6
A112: 2004-06-05T09:15:00 | B112: S | D112: 9.4
A113: 2004-06-05T14:30:00 | B113: S | D113: 10.4
A114: 2004-06-05T15:15:00 | B114: S | D114: 9.5
A115: 2004-06-05T17:00:00 | B115: S | D115: 8.8
A116: 2004-06-05T17:30:00 | B116: S | D116: 9
A117: 2004-06-06T01:30:00 | B117: S | D117: 7.5
A118: 2004-06-06T01:45:00 | B118: S | D118: 8
A119: 2004-06-06T02:30:00 | B119: S | D119: 7.5
A120: 2004-06-06T05:15:00 | B120: S | D120: 8.1
A121: 2004-06-06T18:45:00 | B121: S | D121: 7.8
A122: 2004-06-06T20:00:00 | B122: S | D122: 8.2
A123: 2004-06-06T21:45:00 | B123: S | D123: 7.3
A124: 2004-06-06T22:30:00 | B124: S | D124: 7.3
A125: 2004-06-07T01:15:00 | B125: S | D125: 8
A126: 2004-06-07T09:00:00 | B126: S | D126: 6.7
A127: 2004-06-07T09:45:00 | B127: S | D127: 6.2
A128: 2004-06-07T11:45:00 | B128: S | D128: 5.7
A129: 2004-06-08T21:45:00 | B129: S | D129: 9.4
A130: 2004-06-09T03:15:00 | B130: S | D130: 9.3
A131: 2004-06-09T12:00:00 | B131: S | D131: 9.6
A132: 2004-06-09T15:00:00 | B132: S | D132: 12.5
A133: 2004-06-09T17:15:00 | B133: S | D133: 14.8
A134: 2004-06-09T19:00:00 | B134: S | D134: 16.8
A135: 2004-06-09T20:15:00 | B135: S | D135: 17.6
A136: 2004-06-09T23:30:00 | B136: S | D136: 15.9
A137: 2004-06-10T02:45:00 | B137: S | D137: 16.2
A138: 2004-06-10T04:00:00 | B138: S | D138: 14.4
A139: 2004-06-10T05:00:00 | B139: S | D139: 13.5
A140: 2004-06-10T05:45:00 | B140: S | D140: 13.4
A141: 2004-06-10T07:00:00 | B141: S | D141: 14.2
A142: 2004-06-10T11:45:00 | B142: S | D142: 11.3
A143: 2004-06-10T17:15:00 | B143: S | D143: 8.4
A144: 2004-06-10T20:30:00 | B144: S | D144: 9
A145: 2004-06-10T22:15:00 | B145: S | D145: 8
A146: 2004-06-10T23:00:00 | B146: S | D146: 8
A147: 2004-06-11T03:15:00 | B147: S | D147: 8.8
A148: 2004-06-11T09:30:00 | B148: S | D148: 9.4
A149: 2004-06-11T20:15:00 | B149: S | D149: 13.3
A150: 2004-06-12T12:45:00 | B150: S | D150: 9.6
A151: 2004-06-12T13:45:00 | B151: S | D151: 9.4
A152: 2004-06-12T14:15:00 | B152: S | D152: 8.8
A153: 2004-06-12T19:00:00 | B153: S | D153: 8.6
A154: 2004-06-12T19:30:00 | B154: S | D154: 8.1
A155: 2004-06-12T20:45:00 | B155: S | D155: 8.7
A156: 2004-06-13T04:45:00 | B156: S | D156: 8.5
A157: 2004-06-13T19:30:00 | B157: S | D157: 9.3
A158: 2004-06-13T21:30:00 | B158: S | D158: 11.2
A159: 2004-06-14T01:15:00 | B159: S | D159: 9.8
A160: 2004-06-14T07:45:00 | B160: S | D160: 8.8
A161: 2004-06-14T22:45:00 | B161: S | D161: 8.6
A162: 2004-06-15T12:15:00 | B162: S | D162: 8.5
A163: 2004-06-15T16:45:00 | B163: S | D163: 11.6
A164: 2004-06-15T19:45:00 | B164: S | D164: 13.6
A165: 2004-06-15T20:15:00 | B165: S | D165: 14
A166: 2004-06-15T22:00:00 | B166: S | D166: 14.6
A167: 2004-06-16T03:15:00 | B167: S | D167: 16
A168: 2004-06-16T23:30:00 | B168: S | D168: 28.7
A169: 2004-06-17T08:45:00 | B169: S | D169: 24.4
A170: 2004-06-17T12:45:00 | B170: S | D170: 31.9
A171: 2004-06-17T19:30:00 | B171: S | D171: 43.8
A172: 2004-06-18T00:30:00 | B172: S | D172: 47.1
A173: 2004-06-18T23:45:00 | B173: S | D173: 50.9
A174: 2004-06-19T03:00:00 | B174: S | D174: 45.4
A175: 2004-06-19T11:45:00 | B175: S | D175: 37.8
A176: 2004-06-20T01:15:00 | B176: S | D176: 29.2
A177: 2004-06-20T11:15:00 | B177: S | D177: 28.7
A178: 2004-06-20T21:15:00 | B178: S | D178: 30.5
A179: 2004-06-21T09:00:00 | B179: S | D179: 26.4
A180: 2004-06-21T20:00:00 | B180: S | D180: 38.6
A181: 2004-06-22T00:45:00 | B181: S | D181: 38.1
A182: 2004-06-22T01:15:00 | B182: S | D182: 36.6
A183: 2004-06-22T11:15:00 | B183: S | D183: 32.4
A184: 2004-06-22T15:00:00 | B184: S | D184: 33.9
A185: 2004-06-22T20:30:00 | B185: S | D185: 37.6
A186: 2004-06-23T22:00:00 | B186: S | D186: 24.1
A187: 2004-06-24T04:15:00 | B187: S | D187: 26.1
A188: 2004-06-24T07:00:00 | B188: S | D188: 26.6
A189: 2004-06-24T15:45:00 | B189: S | D189: 21.9
A190: 2004-06-24T21:15:00 | B190: S | D190: 20
A191: 2004-06-25T06:30:00 | B191: S | D191: 20.5
A192: 2004-06-25T07:45:00 | B192: S | D192: 20.9
A193: 2004-06-25T10:00:00 | B193: S | D193: 21.9
A194: 2004-06-25T12:15:00 | B194: S | D194: 22.9
A195: 2004-06-26T02:30:00 | B195: S | D195: 23.6
A196: 2004-06-26T10:30:00 | B196: S | D196: 22.9
A197: 2004-06-26T18:15:00 | B197: S | D197: 23
A198: 2004-06-26T19:00:00 | B198: S | D198: 22.5
A199: 2004-06-26T22:45:00 | B199: S | D199: 23.1
A200: 2004-06-27T06:45:00 | B200: S | D200: 19.9
A201: 2004-06-27T08:00:00 | B201: S | D201: 21.2
A202: 2004-06-27T16:15:00 | B202: S | D202: 21.3
... 785 more rows

Sheet Trim
A3: =BadDLMsg -> Note: Valid data point(s) with concentration lower than the highest reported detection limit marked with a red star. | H3: Basic Stats | I3: Raw Data | J3: Log Transformed
A4: Date | B4: Season | C4: Non-detect | D4: Concentration | E4: LN (Conc) | F4: Trim | H4: Count | I4: 897 | J4: 897 | L4: Calculated by macro CalculateStatsTrim() | Y4: N-values RD | Z4: N-values LT
A5: 2006-07-01 | B5: S | C5: < | D5: 0.01 | E5: -4.605170186 | F5: Y | G5: ­ | H5: Mean | I5: 17.12274247 | J5: 2.619146363 | Y5: 0.946718363 | Z5: 0.9637909977
A6: 2004-05-15T01:00:00 | B6: S | C6: < | D6: 0.1 | E6: -2.302585093 | F6: Y | H6: Median | I6: 14.5 | J6: 2.674148649 | K6: StDev RD | L6: StDev LT | Y6: 0.8746454587 | Z6: 0.9128281029
A7: 2004-05-15T01:00:00 | B7: S | D7: 12.1 | E7: 2.493205453 | H7: Standard dev. * | I7: 36.01296958 | J7: 2.325434707 | K7: 11.0475866 | L7: 0.7056489548 | Y7: 0.7751935558 | Z7: 0.8137022218
A8: 2004-05-15T05:30:00 | B8: S | D8: 12 | E8: 2.48490665 | H8: Skew | I8: 1.148548187 | J8: -0.4829015366 | Y8: 0.6770636686 | Z8: 0.7105089321
A9: 2004-05-15T08:15:00 | B9: S | D9: 10.3 | E9: 2.332143895 | H9: * Corrected for serial correlation | Y9: 0.5631645209 | Z9: 0.5930599891
A10: 2004-05-15T15:30:00 | B10: S | D10: 13.5 | E10: 2.602689685 | Y10: 0.4252749849 | Z10: 0.4386838398
A11: 2004-05-15T18:45:00 | B11: S | D11: 13.6 | E11: 2.610069793 | H11: Step 6 - Trim data as needed, then perform statistical analyses | Y11: 0.3141473606 | Z11: 0.2913605265
A12: 2004-05-15T20:15:00 | B12: S | D12: 14.9 | E12: 2.701361213 | Y12: 0.1630654451 | Z12: 0.141959933
A13: 2004-05-16T01:00:00 | B13: S | D13: 16.2 | E13: 2.785011242 | H13: Click button for W test for normality, and trim if applicable. | O13: Land | P13: Method for central tendancy | Y13: 0.05836499392 | Z13: 0.05242663345
A14: 2004-05-16T04:30:00 | B14: S | D14: 15.6 | E14: 2.747270914 | H14: W test unnecessary (N >= 50). | O14: 2 | P14: Number of non-detects | Y14: 0.03502842987 | Z14: 0.03136934693
A15: 2004-05-16T12:45:00 | B15: S | D15: 12.8 | E15: 2.549445171 | H15: Data ready for statistical analysis. | O15: =COUNTIF(F5:F30004,"Y") -> 4 | P15: Trim count
A16: 2004-05-16T19:30:00 | B16: S | D16: 10.7 | E16: 2.370243741 | O16: 901 | P16: Total data count (including trimmed)
A17: 2004-05-17T01:00:00 | B17: S | D17: 13.1 | E17: 2.57261223 | I17: Method for estimation of central tendency | O17: 31.8 | P17: 90th percentile of full dataset
A18: 2004-05-17T13:30:00 | B18: S | D18: 11.9 | E18: 2.4765384 | I18: Land's method for lognormal distribution
A19: 2004-05-17T20:15:00 | B19: S | D19: 13.6 | E19: 2.610069793
A20: 2004-05-17T22:45:00 | B20: S | D20: 11.6 | E20: 2.451005098
A21: 2004-05-17T23:45:00 | B21: S | D21: 12.2 | E21: 2.501435952 | P21: Histogram, untransformed
A22: 2004-05-18T02:30:00 | B22: S | D22: 15.3 | E22: 2.727852828 | P22: =RDmean-2*RDstdev -> -54.90319669 | Q22: count | R22: bins | S22: label
A23: 2004-05-18T08:30:00 | B23: S | D23: 13.7 | E23: 2.617395833 | P23: =P$22+(P$29-P$22)*1/7 -> -34.32435693 | Q23: 0 | R23: =Q23 -> 0 | S23: -2 sd
A24: 2004-05-18T18:15:00 | B24: S | D24: 16.8 | E24: 2.821378886 | P24: =P$22+(P$29-P$22)*2/7 -> -13.74551717 | Q24: 0 | R24: =Q24-Q23 -> 0
A25: 2004-05-18T21:15:00 | B25: S | D25: 17.2 | E25: 2.844909384 | P25: =P$22+(P$29-P$22)*3/7 -> 6.833322594 | Q25: 144 | R25: 144
A26: 2004-05-19T00:30:00 | B26: S | D26: 19.8 | E26: 2.985681938 | P26: =P$22+(P$29-P$22)*4/7 -> 27.41216236 | Q26: 750 | R26: 606 | S26: Mean
A27: 2004-05-19T02:00:00 | B27: S | D27: 20.4 | E27: 3.015534901 | P27: =P$22+(P$29-P$22)*5/7 -> 47.99100212 | Q27: 879 | R27: 129
A28: 2004-05-19T13:45:00 | B28: S | D28: 15.2 | E28: 2.721295428 | P28: =P$22+(P$29-P$22)*6/7 -> 68.56984188 | Q28: 897 | R28: 18
A29: 2004-05-19T14:45:00 | B29: S | D29: 13.2 | E29: 2.58021683 | P29: =RDmean+2*RDstdev -> 89.14868164 | Q29: 897 | R29: 0 | S29: +2 sd
A30: 2004-05-19T19:15:00 | B30: S | D30: 14.2 | E30: 2.653241965
A31: 2004-05-19T20:30:00 | B31: S | D31: 15.2 | E31: 2.721295428 | P31: Histogram, log transformed
A32: 2004-05-20T08:15:00 | B32: S | D32: 14.4 | E32: 2.667228207 | P32: =LTmean-2*LTstdev -> -2.03172305 | Q32: count | R32: bins | S32: label
A33: 2004-05-20T14:00:00 | B33: S | D33: 14.5 | E33: 2.674148649 | P33: =P$32+(P$39-P$32)*1/7 -> -0.7029032176 | Q33: 0 | R33: =Q33 -> 0 | S33: -2 sd
A34: 2004-05-20T19:15:00 | B34: S | D34: 19.6 | E34: 2.975529566 | P34: =P$32+(P$39-P$32)*2/7 -> 0.6259166147 | Q34: 0 | R34: =Q34-Q33 -> 0
A35: 2004-05-20T22:45:00 | B35: S | D35: 20.9 | E35: 3.039749159 | P35: =P$32+(P$39-P$32)*3/7 -> 1.954736447 | Q35: 5 | R35: 5
A36: 2004-05-21T01:30:00 | B36: S | D36: 22.9 | E36: 3.131136911 | P36: =P$32+(P$39-P$32)*4/7 -> 3.283556279 | Q36: 32 | R36: 27 | S36: Mean
A37: 2004-05-21T10:30:00 | B37: S | D37: 19.9 | E37: 2.990719732 | P37: =P$32+(P$39-P$32)*5/7 -> 4.612376112 | Q37: 66 | R37: 34
A38: 2004-05-21T13:45:00 | B38: S | D38: 20.1 | E38: 3.000719815 | P38: =P$32+(P$39-P$32)*6/7 -> 5.941195944 | Q38: 115 | R38: 49
A39: 2004-05-21T19:30:00 | B39: S | D39: 24.6 | E39: 3.202746443 | P39: =LTmean+2*LTstdev -> 7.270015776 | Q39: 151 | R39: 36 | S39: +2 sd
A40: 2004-05-21T22:45:00 | B40: S | D40: 29 | E40: 3.36729583
A41: 2004-05-22T07:45:00 | B41: S | D41: 28.2 | E41: 3.339321978
A42: 2004-05-22T09:45:00 | B42: S | D42: 26.5 | E42: 3.277144733
A43: 2004-05-23T11:45:00 | B43: S | D43: 25.4 | E43: 3.234749174
A44: 2004-05-23T22:30:00 | B44: S | D44: 27.9 | E44: 3.328626689
A45: 2004-05-23T23:15:00 | B45: S | D45: 31.1 | E45: 3.437207819
A46: 2004-05-23T23:45:00 | B46: S | D46: 27.3 | E46: 3.306886702
A47: 2004-05-24T02:00:00 | B47: S | D47: 24.3 | E47: 3.19047635
A48: 2004-05-24T12:45:00 | B48: S | D48: 23.1 | E48: 3.139832618
A49: 2004-05-24T14:00:00 | B49: S | D49: 24.4 | E49: 3.194583132
A50: 2004-05-24T18:30:00 | B50: S | D50: 19.3 | E50: 2.960105096
A51: 2004-05-24T21:30:00 | B51: S | D51: 21.1 | E51: 3.04927304
A52: 2004-05-25T00:30:00 | B52: S | D52: 22.4 | E52: 3.109060959
A53: 2004-05-25T06:00:00 | B53: S | D53: 21.7 | E53: 3.077312261
A54: 2004-05-25T22:45:00 | B54: S | D54: 16.6 | E54: 2.809402695
A55: 2004-05-26T11:15:00 | B55: S | D55: 14.9 | E55: 2.701361213
A56: 2004-05-26T12:30:00 | B56: S | D56: 13.8 | E56: 2.624668592
A57: 2004-05-26T14:30:00 | B57: S | D57: 15.6 | E57: 2.747270914
A58: 2004-05-27T01:30:00 | B58: S | D58: 11.5 | E58: 2.442347035
A59: 2004-05-27T04:00:00 | B59: S | D59: 12.5 | E59: 2.525728644
A60: 2004-05-27T05:15:00 | B60: S | D60: 11.6 | E60: 2.451005098
A61: 2004-05-27T06:00:00 | B61: S | D61: 10.5 | E61: 2.351375257
A62: 2004-05-27T09:15:00 | B62: S | D62: 14.1 | E62: 2.646174797
A63: 2004-05-27T12:00:00 | B63: S | D63: 9.8 | E63: 2.282382386
A64: 2004-05-27T13:30:00 | B64: S | D64: 10.2 | E64: 2.32238772
A65: 2004-05-27T14:45:00 | B65: S | D65: 11.8 | E65: 2.468099531
A66: 2004-05-27T14:45:00 | B66: S | D66: 14.2 | E66: 2.653241965
A67: 2004-05-27T18:45:00 | B67: S | D67: 15.6 | E67: 2.747270914
A68: 2004-05-27T22:45:00 | B68: S | D68: 16 | E68: 2.772588722
A69: 2004-05-28T05:30:00 | B69: S | D69: 13.7 | E69: 2.617395833
A70: 2004-05-28T12:15:00 | B70: S | D70: 12.9 | E70: 2.557227311
A71: 2004-05-28T14:15:00 | B71: S | D71: 13.1 | E71: 2.57261223
A72: 2004-05-28T15:30:00 | B72: S | D72: 13.6 | E72: 2.610069793
A73: 2004-05-28T23:45:00 | B73: S | D73: 17.1 | E73: 2.839078464
A74: 2004-05-29T05:30:00 | B74: S | D74: 17.1 | E74: 2.839078464
A75: 2004-05-29T13:00:00 | B75: S | D75: 14.5 | E75: 2.674148649
A76: 2004-05-30T06:00:00 | B76: S | D76: 15.8 | E76: 2.76000994
A77: 2004-05-30T08:15:00 | B77: S | D77: 14.3 | E77: 2.660259537
A78: 2004-05-30T10:00:00 | B78: S | D78: 14.7 | E78: 2.687847494
A79: 2004-05-30T14:45:00 | B79: S | D79: 19.5 | E79: 2.970414466
A80: 2004-05-30T15:30:00 | B80: S | D80: 19.7 | E80: 2.980618636
A81: 2004-05-30T21:15:00 | B81: S | D81: 28 | E81: 3.33220451
A82: 2004-05-31T01:45:00 | B82: S | D82: 29.1 | E82: 3.370738174
A83: 2004-05-31T03:45:00 | B83: S | D83: 29.6 | E83: 3.387774361
A84: 2004-05-31T05:00:00 | B84: S | D84: 29.4 | E84: 3.380994674
A85: 2004-05-31T05:15:00 | B85: S | D85: 27.8 | E85: 3.325036021
A86: 2004-05-31T07:15:00 | B86: S | D86: 24.5 | E86: 3.198673118
A87: 2004-05-31T08:30:00 | B87: S | D87: 25.8 | E87: 3.250374492
A88: 2004-05-31T14:00:00 | B88: S | D88: 26.2 | E88: 3.265759411
A89: 2004-05-31T14:30:00 | B89: S | D89: 35.2 | E89: 3.561046083
A90: 2004-05-31T19:00:00 | B90: S | D90: 35.4 | E90: 3.56671182
A91: 2004-05-31T19:30:00 | B91: S | D91: 39.9 | E91: 3.686376324
A92: 2004-06-01T02:30:00 | B92: S | D92: 34.8 | E92: 3.549617387
A93: 2004-06-01T03:30:00 | B93: S | D93: 35.2 | E93: 3.561046083
A94: 2004-06-01T07:45:00 | B94: S | D94: 27.1 | E94: 3.299533728
A95: 2004-06-01T12:00:00 | B95: S | D95: 23 | E95: 3.135494216
A96: 2004-06-01T12:45:00 | B96: S | D96: 24.7 | E96: 3.206803244
A97: 2004-06-01T14:30:00 | B97: S | D97: 24 | E97: 3.17805383
A98: 2004-06-01T23:45:00 | B98: S | D98: 20 | E98: 2.995732274
A99: 2004-06-02T09:45:00 | B99: S | D99: 17.5 | E99: 2.862200881
A100: 2004-06-02T12:15:00 | B100: S | D100: 14.5 | E100: 2.674148649
A101: 2004-06-02T12:45:00 | B101: S | D101: 15.7 | E101: 2.753660712
A102: 2004-06-02T16:45:00 | B102: S | D102: 14.1 | E102: 2.646174797
A103: 2004-06-02T21:45:00 | B103: S | D103: 14.4 | E103: 2.667228207
A104: 2004-06-03T16:15:00 | B104: S | D104: 13.2 | E104: 2.58021683
A105: 2004-06-04T01:30:00 | B105: S | D105: 11.7 | E105: 2.459588842
A106: 2004-06-04T03:45:00 | B106: S | D106: 12.4 | E106: 2.517696473
A107: 2004-06-04T06:30:00 | B107: S | D107: 12.6 | E107: 2.533696814
A108: 2004-06-04T13:30:00 | B108: S | D108: 10.4 | E108: 2.341805806
A109: 2004-06-04T15:15:00 | B109: S | D109: 10 | E109: 2.302585093
A110: 2004-06-04T20:30:00 | B110: S | D110: 10.8 | E110: 2.379546134
A111: 2004-06-04T21:00:00 | B111: S | D111: 10.8 | E111: 2.379546134
A112: 2004-06-05T00:45:00 | B112: S | D112: 10.6 | E112: 2.360854001
A113: 2004-06-05T09:15:00 | B113: S | D113: 9.4 | E113: 2.240709689
A114: 2004-06-05T14:30:00 | B114: S | D114: 10.4 | E114: 2.341805806
A115: 2004-06-05T15:15:00 | B115: S | D115: 9.5 | E115: 2.251291799
A116: 2004-06-05T17:00:00 | B116: S | D116: 8.8 | E116: 2.174751721
A117: 2004-06-05T17:30:00 | B117: S | D117: 9 | E117: 2.197224577
A118: 2004-06-06T01:30:00 | B118: S | D118: 7.5 | E118: 2.014903021
A119: 2004-06-06T01:45:00 | B119: S | D119: 8 | E119: 2.079441542
A120: 2004-06-06T02:30:00 | B120: S | D120: 7.5 | E120: 2.014903021
A121: 2004-06-06T05:15:00 | B121: S | D121: 8.1 | E121: 2.091864062
A122: 2004-06-06T18:45:00 | B122: S | D122: 7.8 | E122: 2.054123734
A123: 2004-06-06T20:00:00 | B123: S | D123: 8.2 | E123: 2.104134154
A124: 2004-06-06T21:45:00 | B124: S | D124: 7.3 | E124: 1.987874348
A125: 2004-06-06T22:30:00 | B125: S | D125: 7.3 | E125: 1.987874348
A126: 2004-06-07T01:15:00 | B126: S | D126: 8 | E126: 2.079441542
A127: 2004-06-07T09:00:00 | B127: S | D127: 6.7 | E127: 1.902107526
A128: 2004-06-07T09:45:00 | B128: S | D128: 6.2 | E128: 1.824549292
A129: 2004-06-07T11:45:00 | B129: S | D129: 5.7 | E129: 1.740466175
A130: 2004-06-08T21:45:00 | B130: S | D130: 9.4 | E130: 2.240709689
A131: 2004-06-09T03:15:00 | B131: S | D131: 9.3 | E131: 2.2300144
A132: 2004-06-09T12:00:00 | B132: S | D132: 9.6 | E132: 2.261763098
A133: 2004-06-09T15:00:00 | B133: S | D133: 12.5 | E133: 2.525728644
A134: 2004-06-09T17:15:00 | B134: S | D134: 14.8 | E134: 2.694627181
A135: 2004-06-09T19:00:00 | B135: S | D135: 16.8 | E135: 2.821378886
A136: 2004-06-09T20:15:00 | B136: S | D136: 17.6 | E136: 2.867898902
A137: 2004-06-09T23:30:00 | B137: S | D137: 15.9 | E137: 2.766319109
A138: 2004-06-10T02:45:00 | B138: S | D138: 16.2 | E138: 2.785011242
A139: 2004-06-10T04:00:00 | B139: S | D139: 14.4 | E139: 2.667228207
A140: 2004-06-10T05:00:00 | B140: S | D140: 13.5 | E140: 2.602689685
A141: 2004-06-10T05:45:00 | B141: S | D141: 13.4 | E141: 2.595254707
A142: 2004-06-10T07:00:00 | B142: S | D142: 14.2 | E142: 2.653241965
A143: 2004-06-10T11:45:00 | B143: S | D143: 11.3 | E143: 2.424802726
A144: 2004-06-10T17:15:00 | B144: S | D144: 8.4 | E144: 2.128231706
A145: 2004-06-10T20:30:00 | B145: S | D145: 9 | E145: 2.197224577
A146: 2004-06-10T22:15:00 | B146: S | D146: 8 | E146: 2.079441542
A147: 2004-06-10T23:00:00 | B147: S | D147: 8 | E147: 2.079441542
A148: 2004-06-11T03:15:00 | B148: S | D148: 8.8 | E148: 2.174751721
A149: 2004-06-11T09:30:00 | B149: S | D149: 9.4 | E149: 2.240709689
A150: 2004-06-11T20:15:00 | B150: S | D150: 13.3 | E150: 2.587764035
A151: 2004-06-12T12:45:00 | B151: S | D151: 9.6 | E151: 2.261763098
A152: 2004-06-12T13:45:00 | B152: S | D152: 9.4 | E152: 2.240709689
A153: 2004-06-12T14:15:00 | B153: S | D153: 8.8 | E153: 2.174751721
A154: 2004-06-12T19:00:00 | B154: S | D154: 8.6 | E154: 2.151762203
A155: 2004-06-12T19:30:00 | B155: S | D155: 8.1 | E155: 2.091864062
A156: 2004-06-12T20:45:00 | B156: S | D156: 8.7 | E156: 2.163323026
A157: 2004-06-13T04:45:00 | B157: S | D157: 8.5 | E157: 2.140066163
A158: 2004-06-13T19:30:00 | B158: S | D158: 9.3 | E158: 2.2300144
A159: 2004-06-13T21:30:00 | B159: S | D159: 11.2 | E159: 2.415913778
A160: 2004-06-14T01:15:00 | B160: S | D160: 9.8 | E160: 2.282382386
A161: 2004-06-14T07:45:00 | B161: S | D161: 8.8 | E161: 2.174751721
A162: 2004-06-14T22:45:00 | B162: S | D162: 8.6 | E162: 2.151762203
A163: 2004-06-15T12:15:00 | B163: S | D163: 8.5 | E163: 2.140066163
A164: 2004-06-15T16:45:00 | B164: S | D164: 11.6 | E164: 2.451005098
A165: 2004-06-15T19:45:00 | B165: S | D165: 13.6 | E165: 2.610069793
A166: 2004-06-15T20:15:00 | B166: S | D166: 14 | E166: 2.63905733
A167: 2004-06-15T22:00:00 | B167: S | D167: 14.6 | E167: 2.681021529
A168: 2004-06-16T03:15:00 | B168: S | D168: 16 | E168: 2.772588722
A169: 2004-06-16T23:30:00 | B169: S | D169: 28.7 | E169: 3.356897123
A170: 2004-06-17T08:45:00 | B170: S | D170: 24.4 | E170: 3.194583132
A171: 2004-06-17T12:45:00 | B171: S | D171: 31.9 | E171: 3.46260601
A172: 2004-06-17T19:30:00 | B172: S | D172: 43.8 | E172: 3.779633817
A173: 2004-06-18T00:30:00 | B173: S | D173: 47.1 | E173: 3.852273001
A174: 2004-06-18T23:45:00 | B174: S | D174: 50.9 | E174: 3.929862924
A175: 2004-06-19T03:00:00 | B175: S | D175: 45.4 | E175: 3.815512105
A176: 2004-06-19T11:45:00 | B176: S | D176: 37.8 | E176: 3.632309103
A177: 2004-06-20T01:15:00 | B177: S | D177: 29.2 | E177: 3.374168709
A178: 2004-06-20T11:15:00 | B178: S | D178: 28.7 | E178: 3.356897123
A179: 2004-06-20T21:15:00 | B179: S | D179: 30.5 | E179: 3.417726684
A180: 2004-06-21T09:00:00 | B180: S | D180: 26.4 | E180: 3.27336401
A181: 2004-06-21T20:00:00 | B181: S | D181: 38.6 | E181: 3.653252276
A182: 2004-06-22T00:45:00 | B182: S | D182: 38.1 | E182: 3.640214282
A183: 2004-06-22T01:15:00 | B183: S | D183: 36.6 | E183: 3.60004824
A184: 2004-06-22T11:15:00 | B184: S | D184: 32.4 | E184: 3.478158423
A185: 2004-06-22T15:00:00 | B185: S | D185: 33.9 | E185: 3.523415014
A186: 2004-06-22T20:30:00 | B186: S | D186: 37.6 | E186: 3.62700405
A187: 2004-06-23T22:00:00 | B187: S | D187: 24.1 | E187: 3.18221184
A188: 2004-06-24T04:15:00 | B188: S | D188: 26.1 | E188: 3.261935314
A189: 2004-06-24T07:00:00 | B189: S | D189: 26.6 | E189: 3.280911216
A190: 2004-06-24T15:45:00 | B190: S | D190: 21.9 | E190: 3.086486637
A191: 2004-06-24T21:15:00 | B191: S | D191: 20 | E191: 2.995732274
A192: 2004-06-25T06:30:00 | B192: S | D192: 20.5 | E192: 3.020424886
A193: 2004-06-25T07:45:00 | B193: S | D193: 20.9 | E193: 3.039749159
A194: 2004-06-25T10:00:00 | B194: S | D194: 21.9 | E194: 3.086486637
A195: 2004-06-25T12:15:00 | B195: S | D195: 22.9 | E195: 3.131136911
A196: 2004-06-26T02:30:00 | B196: S | D196: 23.6 | E196: 3.161246712
A197: 2004-06-26T10:30:00 | B197: S | D197: 22.9 | E197: 3.131136911
A198: 2004-06-26T18:15:00 | B198: S | D198: 23 | E198: 3.135494216
A199: 2004-06-26T19:00:00 | B199: S | D199: 22.5 | E199: 3.113515309
A200: 2004-06-26T22:45:00 | B200: S | D200: 23.1 | E200: 3.139832618
A201: 2004-06-27T06:45:00 | B201: S | D201: 19.9 | E201: 2.990719732
A202: 2004-06-27T08:00:00 | B202: S | D202: 21.2 | E202: 3.054001182
... 703 more rows

Sheet Results
B3: Alaska NCBWQS Analysis (Version 2.0) - Results
B5: Site: | C5: =IF(ISBLANK(DataInput!H6),"",DataInput!H6) -> Kenai (turbidity)
B6: Analyst: | C6: =IF(ISBLANK(DataInput!H8),"",DataInput!H8) -> Sam
B7: Date: | C7: =IF(ISBLANK(DataInput!H9),"",DataInput!H9) -> 2010-06-10
B9: Data points: | C9: =TotalN -> 901 | E9: In-Season (5/15-8/16)
B11: Lower 95% Confidence Limit (CL) on 90th Percentile (Conover's Nonparametric Method)
B12: Value: | C12: 29.7 | D12: =ConcUnits -> NTU
B14: Lower 95% Confidence Limit (CL) on Central Tendency
B15: Method: | C15: Land's Method for lognormal distributions (corrected for serial correlation)
B16: Value: | C16: 13.91851137 | D16: =D$12 -> NTU
B20: Published Criteria for Site (enter below)
B21: Acute: | D21: =D$12 -> NTU | G21: Define as allowance above natural background of | M21: FALSE
B22: Chronic: | D22: =D$12 -> NTU | H22: =D$12 -> NTU
B24: Natural Condition-Based Criteria for Site
B25: Acute: | C25: =IF(bDefValue=TRUE,URvalue90+G22,URvalue90) -> 29.7 | D25: =D$12 -> NTU | F25: =IF(C21>C25,"Published criterion is greater","") ->  | G25: =IF($M$21,"= Natural background plus "&TEXT(DefValue,"00.0")&" "&H22," ") -> 
B26: Chronic: | C26: =IF(bDefValue=TRUE,CTvalue+DefValue,CTvalue) -> 13.91851137 | D26: =D$12 -> NTU | F26: =IF(C22>C26,"Published criterion is greater","") ->  | G26: =IF($M$21,"= Natural background plus "&TEXT(DefValue,"00.0")&" "&H22," ") -> 
B28: Alternative Calculations for MDL
C29: Lower 95% CL on 95th Percentile: | D29: 37.51411317 | E29: =D$12 -> NTU
C30: Lower 95% CL on 90th Percentile: | D30: =URvalue90 -> 29.7 | E30: =D$12 -> NTU
C31: Estimated Mean: | D31: 17.60383167 | E31: =D$12 -> NTU
C32: Estimated 90th Percentile: | D32: =Trim!O17 -> 31.8 | E32: =D$12 -> NTU
